fUST/lending_fUST_20250828
["ID","MTS","AMOUNT","RATE_DAILY","PERIOD"]
[381791633,1756349454498,-1000.0,0.00021496,2]
[381791634,1756349454508,-1000.0,0.00021496,2]
[381791635,1756349454517,-151.0,0.00021496,2]
[381791636,1756349454526,-1000.0,0.00021496,2]
[381791637,1756349454535,-239.149456,0.00021496,2]
[381791638,1756349454545,-1000.0,0.00021496,2]
[381791639,1756349454554,-1000.0,0.00021496,2]
[381791640,1756349454563,-1000.0,0.00021496,2]
[381791641,1756349454573,-1000.0,0.00021496,2]
[381791642,1756349454583,-1000.0,0.00021496,2]
[381791643,1756349454593,-1000.0,0.00021496,2]
[381791644,1756349454604,-1000.0,0.00021496,2]
[381791645,1756349454614,-1000.0,0.00021496,2]
[381791646,1756349454624,-1000.0,0.00021496,2]
[381791647,1756349454635,-1000.0,0.00021496,2]
[381791648,1756349454645,-1000.0,0.00021496,2]
[381791649,1756349454655,-1000.0,0.00021496,2]
[381791650,1756349454665,-1000.0,0.00021496,2]
[381791651,1756349454674,-1000.0,0.00021496,2]
[381791652,1756349454684,-1000.0,0.00021496,2]
[381791653,1756349454693,-1000.0,0.00021496,2]
[381791654,1756349454702,-1000.0,0.00021496,2]
[381791655,1756349454712,-1000.0,0.00021496,2]
[381791656,1756349454721,-1000.0,0.00021496,2]
[381791657,1756349454730,-1000.0,0.00021496,2]
[381791658,1756349454740,-1000.0,0.00021496,2]
[381791659,1756349454749,-354.314899,0.00021496,2]
[381791660,1756349454759,-354.314899,0.00021496,2]
[381791661,1756349454768,-354.314899,0.00021496,2]
[381791662,1756349454778,-151.0,0.00021496,2]
[381791663,1756349454787,-354.314899,0.00021496,2]
[381791664,1756349454797,-911.207445,0.00021496,2]
[381791665,1756349454807,-911.207445,0.00021496,2]
[381791666,1756349454816,-911.207445,0.00021496,2]
[381791667,1756349454825,-911.207445,0.00021496,2]
[381791668,1756349454834,-151.0,0.00021496,2]
[381791669,1756349454843,-151.0,0.00021496,2]
[381791670,1756349454852,-151.0,0.00021496,2]
[381791671,1756349454862,-151.0,0.00021496,2]
[381791672,1756349454871,-151.0,0.00021496,2]
[381791673,1756349454880,-151.0,0.00021496,2]
[381791674,1756349454890,-151.0,0.00021496,2]
[381791675,1756349454899,-151.0,0.00021496,2]
[381791676,1756349454911,-151.0,0.00021496,2]
[381791677,1756349454921,-151.0,0.00021496,2]
[381791678,1756349454930,-151.0,0.00021496,2]
[381791679,1756349454940,-151.0,0.00021496,2]
[381791680,1756349454950,-89586.38796477,0.00021497,2]
[381791681,1756349455652,-480.0,0.00021249,2]
[381791682,1756349455662,-480.0,0.00021252,2]
[381791683,1756349455671,-480.0,0.0002126,2]
[381791684,1756349455681,-480.0,0.00021395,2]
[381791685,1756349455691,-5241.67935665,0.00021497,2]
[381791686,1756349455703,-408.0,0.00021497,2]
[381791687,1756349455714,-707.121888,0.00021497,2]
[381791688,1756349474468,1482.70139141,0.00020111,7]
[381791689,1756349481269,225.48945376,0.000199,2]
[381791690,1756349651855,210.45682352,0.000199,2]
[381791695,1756349822215,83.25040095,0.000199,2]
[381791696,1756349822239,438.46894388,0.000199,2]
[381791697,1756349837187,300.0,0.00030634,120]
[381791700,1756349953058,9561.54105612,0.0002,2]
[381791701,1756349953080,10000.01,0.0002,2]
[381791702,1756349953104,10000.01,0.0002,2]
[381791703,1756349953125,10000.01,0.0002,2]
[381791704,1756349953147,10000.01,0.0002,2]
[381791705,1756349953169,10000.01,0.0002,2]
[381791706,1756349953191,10000.01,0.0002,2]
[381791707,1756349953213,10000.01,0.0002,2]
[381791708,1756349953248,10000.01,0.0002,2]
[381791709,1756349953269,10000.01,0.0002,2]
[381791710,1756349953498,112667.81349127,0.0002,2]
[381791712,1756349998235,552.23458539,0.000199,2]
[381791719,1756350182780,533.82676608,0.000199,2]
[381791720,1756350205159,155.02,0.00027397,120]
[381791721,1756350255626,8913.94864853,0.00020041,2]
[381791722,1756350255649,10000.01,0.00020041,2]
[381791723,1756350255672,7683.41874027,0.00020041,2]
[381791739,1756350360140,562.34156302,0.000199,2]
[381791760,1756350413109,-157.34994068,0.00020824,2]
[381791761,1756350413128,-97.6562363,0.0002086,2]
[381791762,1756350480449,283.98,0.00015984,3]
[381791763,1756350480730,156.69,0.00015984,3]
[381791764,1756350515485,303.54965333,0.0002011,2]
[381791765,1756350536391,543.59684433,0.000199,2]
[381791863,1756350638372,-511.45762353,0.00020755,2]
[381791866,1756350638382,-500.0,0.00020755,2]
[381791868,1756350638391,-500.0,0.00020755,2]
[381791870,1756350638401,-500.0,0.00020755,2]
[381791872,1756350638410,-500.0,0.00020755,2]
[381791874,1756350638419,-500.0,0.00020755,2]
[381791876,1756350638429,-419.40118241,0.00020755,2]
[381791879,1756350638444,-80.59881759,0.00020755,2]
[381791881,1756350638453,-607.79380167,0.00020755,2]
[381791883,1756350638462,-500.0,0.00020755,2]
[381791885,1756350638472,-500.0,0.00020755,2]
[381791887,1756350638481,-500.0,0.00020755,2]
[381791889,1756350638491,-500.0,0.00020755,2]
[381791890,1756350638500,-500.0,0.00020755,2]
[381791892,1756350638509,-387.12127233,0.00020755,2]
[381791894,1756350638519,-500.0,0.00020755,2]
[381791896,1756350638528,-343.83608839,0.00020755,2]
[381791898,1756350638537,-500.0,0.00020755,2]
[381791900,1756350638547,-500.0,0.00020755,2]
[381791902,1756350638556,-500.0,0.00020755,2]
[381791904,1756350638565,-500.0,0.00020755,2]
[381791906,1756350638574,-500.0,0.00020755,2]
[381791908,1756350638584,-138.14168129,0.00020755,2]
[381791910,1756350638595,-361.85831871,0.00020755,2]
[381791912,1756350638604,-500.0,0.00020755,2]
[381791914,1756350638613,-500.0,0.00020755,2]
[381791916,1756350638624,-500.0,0.00020755,2]
[381791918,1756350638634,-500.0,0.00020755,2]
[381791920,1756350638642,-500.0,0.00020755,2]
[381791922,1756350638652,-500.0,0.00020755,2]
[381791924,1756350638661,-126.46404965,0.00020755,2]
[381791926,1756350638672,-373.53595035,0.00020755,2]
[381791928,1756350638682,-500.0,0.00020755,2]
[381791930,1756350638691,-500.0,0.00020755,2]
[381791932,1756350638700,-500.0,0.00020755,2]
[381791934,1756350638710,-500.0,0.00020755,2]
[381791936,1756350638719,-500.0,0.00020755,2]
[381791938,1756350638728,-500.0,0.00020755,2]
[381791940,1756350638738,-500.0,0.00020755,2]
[381791941,1756350638748,-500.0,0.00020755,2]
[381791943,1756350638757,-500.0,0.00020755,2]
[381791945,1756350638767,-456.05956502,0.00020755,2]
[381791947,1756350638776,-500.0,0.00020755,2]
[381791949,1756350638785,-500.0,0.00020755,2]
[381791951,1756350638795,-500.0,0.00020755,2]
[381791952,1756350638805,-500.0,0.00020755,2]
[381791953,1756350638814,-500.0,0.00020755,2]
[381791954,1756350638824,-500.0,0.00020755,2]
[381791955,1756350638834,-383.03207082,0.00020755,2]
[381791956,1756350638844,-500.0,0.00020755,2]
[381791957,1756350638854,-500.0,0.00020755,2]
[381791958,1756350638863,-500.0,0.00020755,2]
[381791959,1756350638874,-500.0,0.00020755,2]
[381791960,1756350638883,-194.74074857,0.00020755,2]
[381791961,1756350638892,-446.34776491,0.00020755,2]
[381791962,1756350638902,-500.0,0.00020755,2]
[381791963,1756350638911,-183.95317402,0.00020755,2]
[381791964,1756350638923,-316.04682598,0.00020755,2]
[381791965,1756350638933,-500.0,0.00020755,2]
[381791966,1756350638943,-69.91994918,0.00020755,2]
[381791967,1756350638954,-430.08005082,0.00020755,2]
[381791968,1756350638963,-500.0,0.00020755,2]
[381791969,1756350638973,-500.0,0.00020755,2]
[381791970,1756350638982,-500.0,0.00020755,2]
[381791971,1756350638991,-500.0,0.00020755,2]
[381791972,1756350639000,-500.0,0.00020755,2]
[381791973,1756350639010,-227.34537958,0.00020755,2]
[381791974,1756350639026,-272.65462042,0.00020755,2]
[381791975,1756350639035,-444.44824149,0.00020755,2]
[381791976,1756350639044,-500.0,0.00020755,2]
[381791977,1756350639054,-500.0,0.00020755,2]
[381791978,1756350639063,-391.16933238,0.00020755,2]
[381791979,1756350639072,-500.0,0.00020755,2]
[381791980,1756350639081,-500.0,0.00020755,2]
[381791981,1756350639090,-500.0,0.00020755,2]
[381791982,1756350639099,-500.0,0.00020755,2]
[381791983,1756350639108,-500.0,0.00020755,2]
[381791984,1756350639117,-500.0,0.00020755,2]
[381791985,1756350639127,-500.0,0.00020755,2]
[381791986,1756350639137,-500.0,0.00020755,2]
[381791987,1756350639146,-500.0,0.00020755,2]
[381791988,1756350639155,-500.0,0.00020755,2]
[381791989,1756350639164,-500.0,0.00020755,2]
[381791990,1756350639173,-500.0,0.00020755,2]
[381791991,1756350639183,-500.0,0.00020755,2]
[381791992,1756350639192,-13305.78741251,0.00020756,2]
[381791993,1756350639202,-2239.12839743,0.00020856,2]
[381791994,1756350639210,-457.56208882,0.00020856,2]
[381791995,1756350639220,-689.73534266,0.0002086,2]
[381791996,1756350639229,-168.0,0.0002086,2]
[381791997,1756350639238,-640.36,0.00020946,10]
[381791998,1756350639248,-999.81,0.00020946,10]
[381791999,1756350639257,-833.18,0.00020946,10]
[381792000,1756350639266,-694.31,0.00020946,10]
[381792001,1756350639275,-300.0,0.00020955,2]
[381792002,1756350639286,-300.0,0.00020955,2]
[381792003,1756350639300,-300.0,0.00020955,2]
[381792004,1756350639309,-300.0,0.00020955,2]
[381792005,1756350639318,-300.0,0.00020955,2]
[381792006,1756350639327,-1200.0,0.00020955,2]
[381792007,1756350639336,-50000.0,0.00020956,2]
[381792008,1756350639346,-1200.0,0.00020957,2]
[381792009,1756350639355,-480.0,0.00020957,2]
[381792010,1756350639365,-480.0,0.00020957,2]
[381792011,1756350639375,-937.13,0.00020957,2]
[381792012,1756350639384,-1113.59,0.00020957,2]
[381792013,1756350639393,-480.0,0.00020957,2]
[381792014,1756350639402,-480.0,0.00020957,2]
[381792015,1756350639412,-480.0,0.00020957,2]
[381792016,1756350639421,-250.0,0.00020964,2]
[381792017,1756350639430,-250.0,0.00020964,2]
[381792018,1756350639439,-250.0,0.00020964,2]
[381792019,1756350639448,-347.66845658,0.00020964,2]
[381792020,1756350639458,-2434.74389024,0.00020964,2]
[381792021,1756350639469,-9431.03101254,0.00020971,2]
[381792022,1756350639478,-38748.04534064,0.00020971,2]
[381792023,1756350639486,-748.67984728,0.00020975,2]
[381792024,1756350639496,-482.35131049,0.00020976,2]
[381792025,1756350639505,-480.0,0.00020976,2]
[381792026,1756350639515,-1032.49,0.00020976,2]
[381792027,1756350639523,-480.0,0.00020976,2]
[381792028,1756350639716,-1715.78,0.00020976,2]
[381792029,1756350639726,-1837.1,0.00020976,2]
[381792030,1756350639735,-3039.59,0.00020976,2]
[381792031,1756350639745,-480.0,0.00020976,2]
[381792032,1756350639754,-480.0,0.00020976,2]
[381792033,1756350639764,-1381.41,0.00020976,2]
[381792034,1756350639774,-480.0,0.00020976,2]
[381792035,1756350639783,-480.0,0.00020976,2]
[381792036,1756350639793,-480.0,0.00020976,2]
[381792037,1756350639803,-500.0,0.00020976,2]
[381792038,1756350639812,-1021.0,0.00021,2]
[381792039,1756350639821,-2986.88055181,0.00021,2]
[381792040,1756350639831,-604.0,0.00021,3]
[381792041,1756350639840,-151.0,0.00021,4]
[381792042,1756350639850,-151.0,0.00021,3]
[381792043,1756350639859,-168.0,0.00021013,2]
[381792044,1756350639870,-2524.82941417,0.00021019,2]
[381792045,1756350639879,-9431.0310125,0.0002104,2]
[381792046,1756350639889,-1103.56,0.00021048,3]
[381792047,1756350639899,-551.78,0.00021048,3]
[381792048,1756350639909,-275.89,0.00021048,3]
[381792049,1756350639919,-2207.12,0.00021049,3]
[381792050,1756350639929,-196.0,0.00021052,2]
[381792051,1756350639939,-160.0,0.00021057,2]
[381792052,1756350639949,-1950.39,0.00021058,2]
[381792053,1756350639959,-626.23,0.00021058,2]
[381792054,1756350639968,-670.34,0.00021058,2]
[381792055,1756350639978,-480.0,0.00021058,2]
[381792056,1756350639987,-3741.23,0.00021058,2]
[381792057,1756350639998,-4763.9,0.00021058,2]
[381792058,1756350640007,-858.24,0.00021058,2]
[381792059,1756350640016,-627.24,0.00021058,2]
[381792060,1756350640027,-391.05448382,0.00021058,2]
[381792061,1756350640036,-480.0,0.00021058,2]
[381792062,1756350640046,-1851.83,0.00021058,2]
[381792063,1756350640056,-480.0,0.00021058,2]
[381792064,1756350640066,-842.6,0.00021058,2]
[381792065,1756350640076,-1240.79,0.00021058,2]
[381792066,1756350640085,-893.55,0.00021058,2]
[381792067,1756350640094,-1690.9,0.00021058,2]
[381792068,1756350640103,-660.91,0.00021058,2]
[381792069,1756350640113,-364.86643201,0.00021058,2]
[381792070,1756350640123,-848.03,0.00021058,2]
[381792071,1756350640132,-480.0,0.00021058,2]
[381792072,1756350640142,-480.0,0.00021058,2]
[381792073,1756350640151,-1799.91,0.00021058,2]
[381792074,1756350640161,-1980.2,0.00021058,2]
[381792075,1756350640170,-173.67381752,0.00021058,2]
[381792076,1756350640179,-827.68,0.00021061,3]
[381792078,1756350640188,-517.12,0.00021071,2]
[381792079,1756350640197,-480.0,0.00021071,2]
[381792080,1756350640207,-480.0,0.00021071,2]
[381792082,1756350640216,-485.00430581,0.00021071,2]
[381792084,1756350640226,-480.0,0.00021071,2]
[381792085,1756350640235,-480.0,0.00021071,2]
[381792087,1756350640244,-480.0,0.00021071,2]
[381792089,1756350640254,-561.1,0.00021071,2]
[381792091,1756350640263,-1128.51,0.00021071,2]
[381792093,1756350640273,-502.95685249,0.00021071,2]
[381792095,1756350640284,-480.0,0.00021071,2]
[381792097,1756350640296,-480.0,0.00021071,2]
[381792099,1756350640305,-480.0,0.00021071,2]
[381792101,1756350640315,-480.0,0.00021071,2]
[381792103,1756350640324,-480.0,0.00021071,2]
[381792105,1756350640333,-480.0,0.00021071,2]
[381792107,1756350640343,-480.0,0.00021071,2]
[381792109,1756350640353,-480.0,0.00021071,2]
[381792111,1756350640362,-626.71,0.00021071,2]
[381792113,1756350640373,-533.97,0.00021071,2]
[381792115,1756350640382,-480.0,0.00021071,2]
[381792117,1756350640393,-481.88420917,0.00021071,2]
[381792119,1756350640402,-480.0,0.00021071,2]
[381792121,1756350640411,-480.0,0.00021071,2]
[381792123,1756350640420,-480.0,0.00021071,2]
[381792125,1756350640430,-480.0,0.00021071,2]
[381792127,1756350640440,-793.9,0.00021071,2]
[381792129,1756350640449,-480.0,0.00021071,2]
[381792131,1756350640458,-480.0,0.00021071,2]
[381792133,1756350640468,-480.0,0.00021071,2]
[381792135,1756350640477,-501.47,0.00021071,2]
[381792137,1756350640487,-480.0,0.00021071,2]
[381792139,1756350640495,-480.0,0.00021071,2]
[381792141,1756350640506,-480.0,0.00021071,2]
[381792143,1756350640516,-480.0,0.00021071,2]
[381792145,1756350640525,-480.0,0.00021071,2]
[381792147,1756350640535,-480.0,0.00021071,2]
[381792149,1756350640544,-480.0,0.00021071,2]
[381792152,1756350640554,-715.9,0.00021071,2]
[381792154,1756350640564,-481.23009518,0.00021071,2]
[381792156,1756350640573,-480.0,0.00021071,2]
[381792158,1756350640583,-480.0,0.00021071,2]
[381792160,1756350640592,-480.0,0.00021071,2]
[381792162,1756350640602,-480.0,0.00021071,2]
[381792164,1756350640611,-480.0,0.00021071,2]
[381792166,1756350640621,-480.0,0.00021071,2]
[381792168,1756350640630,-828.23,0.00021071,2]
[381792170,1756350640639,-480.0,0.00021071,2]
[381792172,1756350640649,-480.0,0.00021071,2]
[381792174,1756350640658,-480.0,0.00021071,2]
[381792176,1756350640667,-480.0,0.00021071,2]
[381792178,1756350640677,-480.0,0.00021071,2]
[381792180,1756350640686,-516.53,0.00021071,2]
[381792182,1756350640695,-480.0,0.00021071,2]
[381792184,1756350640704,-480.0,0.00021071,2]
[381792186,1756350640713,-480.0,0.00021071,2]
[381792188,1756350640722,-1191.89,0.00021071,2]
[381792190,1756350640731,-480.0,0.00021071,2]
[381792192,1756350640741,-480.0,0.00021071,2]
[381792194,1756350640750,-480.0,0.00021071,2]
[381792196,1756350640760,-480.0,0.00021071,2]
[381792198,1756350640769,-480.0,0.00021071,2]
[381792200,1756350640778,-480.0,0.00021071,2]
[381792202,1756350640786,-1790.06,0.00021071,2]
[381792204,1756350640796,-480.0,0.00021071,2]
[381792206,1756350640805,-509.26,0.00021071,2]
[381792208,1756350640814,-1035.83,0.00021071,2]
[381792210,1756350640824,-480.0,0.00021071,2]
[381792212,1756350640834,-480.0,0.00021071,2]
[381792214,1756350640844,-480.0,0.00021071,2]
[381792216,1756350640854,-480.0,0.00021071,2]
[381792218,1756350640864,-686.15,0.00021071,2]
[381792220,1756350640875,-480.0,0.00021071,2]
[381792222,1756350640885,-659.89,0.00021071,2]
[381792224,1756350640894,-480.0,0.00021071,2]
[381792226,1756350640903,-609.22,0.00021071,2]
[381792228,1756350640913,-480.0,0.00021071,2]
[381792230,1756350640923,-480.0,0.00021071,2]
[381792232,1756350640933,-480.0,0.00021071,2]
[381792234,1756350640942,-658.98,0.00021071,2]
[381792236,1756350640952,-480.0,0.00021071,2]
[381792238,1756350640962,-712.13,0.00021071,2]
[381792240,1756350640971,-480.0,0.00021071,2]
[381792242,1756350640982,-499.01,0.00021071,2]
[381792244,1756350640991,-190.52068735,0.00021071,2]
[381792246,1756350641001,-505.08,0.00021071,2]
[381792248,1756350641010,-480.0,0.00021071,2]
[381792250,1756350641019,-480.0,0.00021071,2]
[381792252,1756350641029,-627.17,0.00021071,2]
[381792254,1756350641039,-643.54,0.00021071,2]
[381792256,1756350641048,-185.6824076,0.00021071,2]
[381792258,1756350641057,-480.0,0.00021071,2]
[381792260,1756350641067,-480.0,0.00021071,2]
[381792262,1756350641076,-480.0,0.00021071,2]
[381792264,1756350641086,-480.0,0.00021071,2]
[381792266,1756350641095,-480.0,0.00021071,2]
[381792268,1756350641105,-480.0,0.00021071,2]
[381792270,1756350641114,-480.0,0.00021071,2]
[381792272,1756350641124,-480.0,0.00021071,2]
[381792274,1756350641133,-568.73,0.00021071,2]
[381792276,1756350641143,-480.0,0.00021071,2]
[381792278,1756350641152,-480.0,0.00021071,2]
[381792280,1756350641161,-500.0,0.00021071,2]
[381792282,1756350641171,-828.34,0.00021071,2]
[381792284,1756350641181,-481.75159348,0.00021071,2]
[381792286,1756350641191,-480.0,0.00021071,2]
[381792288,1756350641200,-480.0,0.00021071,2]
[381792290,1756350641209,-480.0,0.00021071,2]
[381792292,1756350641218,-164.59595102,0.00021071,2]
[381792294,1756350641228,-367.40913796,0.00021071,2]
[381792296,1756350641237,-480.0,0.00021071,2]
[381792298,1756350641247,-842.5,0.00021071,2]
[381792300,1756350641256,-480.0,0.00021071,2]
[381792302,1756350641265,-480.0,0.00021071,2]
[381792304,1756350641274,-480.0,0.00021071,2]
[381792305,1756350641284,-480.0,0.00021071,2]
[381792308,1756350641296,-838.02,0.00021071,2]
[381792310,1756350641307,-480.0,0.00021071,2]
[381792312,1756350641316,-480.0,0.00021071,2]
[381792314,1756350641326,-480.0,0.00021071,2]
[381792316,1756350641336,-384.29419228,0.00021071,2]
[381792317,1756350641345,-415.73388381,0.00021071,2]
[381792319,1756350641355,-480.0,0.00021071,2]
[381792321,1756350641364,-480.0,0.00021071,2]
[381792324,1756350641376,-497.45,0.00021071,2]
[381792325,1756350641385,-616.26136832,0.00021071,2]
[381792327,1756350641395,-480.0,0.00021071,2]
[381792329,1756350641404,-480.0,0.00021071,2]
[381792331,1756350641414,-556.65,0.00021071,2]
[381792333,1756350641424,-480.0,0.00021071,2]
[381792335,1756350641433,-934.52,0.00021071,2]
[381792337,1756350641443,-480.0,0.00021071,2]
[381792339,1756350641452,-555.15,0.00021071,2]
[381792341,1756350641462,-480.0,0.00021071,2]
[381792343,1756350641471,-668.61,0.00021071,2]
[381792345,1756350641481,-480.0,0.00021071,2]
[381792347,1756350641490,-1355.27,0.00021071,2]
[381792349,1756350641499,-628.82,0.00021071,2]
[381792351,1756350641508,-156.2214193,0.00021071,2]
[381792353,1756350641517,-480.0,0.00021071,2]
[381792355,1756350641526,-480.0,0.00021071,2]
[381792357,1756350641536,-480.0,0.00021071,2]
[381792359,1756350641546,-480.0,0.00021071,2]
[381792361,1756350641555,-500.0,0.00021071,2]
[381792363,1756350641564,-480.0,0.00021071,2]
[381792365,1756350641573,-480.0,0.00021071,2]
[381792367,1756350641582,-480.0,0.00021071,2]
[381792369,1756350641591,-582.24,0.00021071,2]
[381792371,1756350641601,-480.0,0.00021071,2]
[381792373,1756350641610,-1863.54,0.00021071,2]
[381792375,1756350641619,-480.0,0.00021071,2]
[381792377,1756350641628,-480.0,0.00021071,2]
[381792379,1756350641637,-1358.19,0.00021071,2]
[381792381,1756350641646,-461.64425049,0.00021071,2]
[381792383,1756350641655,-480.0,0.00021071,2]
[381792385,1756350641664,-1191.96,0.00021071,2]
[381792387,1756350641674,-659.89,0.00021071,2]
[381792389,1756350641683,-293.06520352,0.00021071,2]
[381792391,1756350641692,-480.0,0.00021071,2]
[381792393,1756350641701,-480.0,0.00021071,2]
[381792395,1756350641710,-480.0,0.00021071,2]
[381792397,1756350641719,-480.0,0.00021071,2]
[381792399,1756350641728,-480.0,0.00021071,2]
[381792401,1756350641738,-591.8,0.00021071,2]
[381792403,1756350641747,-480.0,0.00021071,2]
[381792405,1756350641756,-480.0,0.00021071,2]
[381792407,1756350641766,-480.0,0.00021071,2]
[381792409,1756350641775,-480.0,0.00021071,2]
[381792411,1756350641785,-480.0,0.00021071,2]
[381792413,1756350641795,-480.0,0.00021071,2]
[381792415,1756350641803,-481.6074401,0.00021071,2]
[381792417,1756350641813,-480.0,0.00021071,2]
[381792419,1756350641823,-480.0,0.00021071,2]
[381792422,1756350641833,-480.0,0.00021071,2]
[381792424,1756350641843,-480.0,0.00021071,2]
[381792426,1756350641852,-461.90157141,0.00021071,2]
[381792428,1756350641861,-480.0,0.00021071,2]
[381792430,1756350641870,-480.0,0.00021071,2]
[381792432,1756350641880,-481.87068303,0.00021071,2]
[381792434,1756350641890,-480.0,0.00021071,2]
[381792436,1756350641899,-480.0,0.00021071,2]
[381792438,1756350641908,-480.0,0.00021071,2]
[381792440,1756350641917,-482.24072435,0.00021071,2]
[381792441,1756350641927,-481.15406375,0.00021071,2]
[381792444,1756350641937,-480.0,0.00021071,2]
[381792446,1756350641946,-942.47,0.00021071,2]
[381792448,1756350641955,-500.0,0.00021071,2]
[381792450,1756350641964,-480.0,0.00021071,2]
[381792452,1756350641974,-480.0,0.00021071,2]
[381792454,1756350641982,-233.77251825,0.00021071,2]
[381792456,1756350641992,-480.0,0.00021071,2]
[381792458,1756350642001,-480.0,0.00021071,2]
[381792460,1756350642011,-558.57,0.00021071,2]
[381792462,1756350642020,-609.4,0.00021071,2]
[381792464,1756350642029,-305.00748767,0.00021071,2]
[381792465,1756350642038,-480.0,0.00021071,2]
[381792467,1756350642048,-480.0,0.00021071,2]
[381792469,1756350642057,-480.0,0.00021071,2]
[381792471,1756350642067,-480.0,0.00021071,2]
[381792473,1756350642076,-480.0,0.00021071,2]
[381792475,1756350642085,-500.0,0.00021071,2]
[381792477,1756350642095,-1120.65,0.00021071,2]
[381792479,1756350642104,-654.61,0.00021071,2]
[381792481,1756350642114,-480.0,0.00021071,2]
[381792483,1756350642123,-1903.38,0.00021071,2]
[381792485,1756350642133,-480.0,0.00021071,2]
[381792487,1756350642144,-556.5,0.00021071,2]
[381792489,1756350642153,-480.0,0.00021071,2]
[381792491,1756350642162,-480.0,0.00021071,2]
[381792493,1756350642171,-480.0,0.00021071,2]
[381792495,1756350642180,-480.0,0.00021071,2]
[381792497,1756350642189,-548.32,0.00021071,2]
[381792499,1756350642198,-480.0,0.00021071,2]
[381792501,1756350642210,-480.0,0.00021071,2]
[381792503,1756350642219,-580.16,0.00021071,2]
[381792505,1756350642228,-624.77,0.00021071,2]
[381792507,1756350642237,-480.0,0.00021071,2]
[381792509,1756350642246,-480.0,0.00021071,2]
[381792511,1756350642255,-480.0,0.00021071,2]
[381792513,1756350642265,-480.0,0.00021071,2]
[381792515,1756350642274,-480.0,0.00021071,2]
[381792518,1756350642285,-770.96,0.00021071,2]
[381792520,1756350642297,-410.94721335,0.00021071,2]
[381792522,1756350642307,-480.0,0.00021071,2]
[381792523,1756350642316,-549.87,0.00021071,2]
[381792525,1756350642325,-480.0,0.00021071,2]
[381792527,1756350642335,-480.0,0.00021071,2]
[381792529,1756350642344,-480.0,0.00021071,2]
[381792531,1756350642353,-480.0,0.00021071,2]
[381792533,1756350642363,-480.0,0.00021071,2]
[381792536,1756350642373,-562.28,0.00021071,2]
[381792538,1756350642383,-480.0,0.00021071,2]
[381792540,1756350642392,-875.76,0.00021071,2]
[381792542,1756350642401,-480.0,0.00021071,2]
[381792544,1756350642411,-480.0,0.00021071,2]
[381792546,1756350642419,-549.15,0.00021071,2]
[381792548,1756350642428,-480.0,0.00021071,2]
[381792550,1756350642438,-480.0,0.00021071,2]
[381792552,1756350642447,-168.46396933,0.00021071,2]
[381792554,1756350642456,-480.0,0.00021071,2]
[381792556,1756350642465,-611.38,0.00021071,2]
[381792558,1756350642475,-480.0,0.00021071,2]
[381792560,1756350642484,-480.0,0.00021071,2]
[381792562,1756350642493,-1340.63,0.00021071,2]
[381792564,1756350642503,-1033.14,0.00021071,2]